bitfinex-derivatives/quotes_SOLF0:USTF0_20250719
["timestamp","ask_amount","ask_price","bid_price","bid_amount"]
[1752935250710,3.17,176.28,176.19,15.30999773]
[1752935250905,3.17,176.28,176.24,3.29]
[1752935251104,3.17,176.28,176.19,15.30999773]
[1752935251105,3.17,176.28,176.25,3.29]
[1752935251299,3.17,176.27,176.23,3.29]
[1752935251508,3.17,176.28,176.25,3.29]
[1752935251705,3.17,176.28,176.2,3.29]
[1752935251899,3.17,176.28,176.27,5.6702]
[1752935252110,3.17,176.28,176.27,8.9602]
[1752935252714,3.96479773,176.31,176.22,3.29]
[1752935252911,7.13479773,176.31,176.22,3.29]
[1752935253319,7.13479773,176.31,176.29,5.6694]
[1752935253509,7.13479773,176.31,176.3,3.29]
[1752935253706,3.17,176.31,176.3,3.29]
[1752935254111,3.17,176.31,176.3,8.9593]
[1752935254509,3.17,176.31,176.27,3.29]
[1752935254712,3.17,176.31,176.29,5.6693]
[1752935255014,3.17,176.31,176.21,3.96479773]
[1752935255015,3.17,176.3,176.22,3.29]
[1752935255216,7.13479773,176.32,176.3,8.9592]
[1752935256113,107.51,176.31,176.21,3.29]
[1752935256312,3.17,176.22,176.13,3.29]
[1752935256615,7.13479773,176.17,176.09,3.29]
[1752935256810,3.17,176.16,176.09,3.29]
[1752935257020,3.96479773,176.15,176.04,3.96479773]
[1752935257210,3.96479773,176.11,176.05,3.29]
[1752935257412,3.17,176.1,176.05,3.29]
[1752935257618,20.95479773,176.22,176.01,381.18]
[1752935257619,7.13479773,176.09,176.01,381.18]
[1752935257816,7.13479773,176.09,176.02,3.29]
[1752935258012,20.95479773,176.22,176.02,3.29]
[1752935258217,7.13479773,176.13,176.04,3.29]
[1752935258413,3.96479773,176.15,176.05,3.96479773]
[1752935258610,381.18,176.3,176.09,3.96479773]
[1752935258611,3.96479773,176.19,176.09,3.96479773]
[1752935258814,3.96479773,176.19,176.1,3.29]
[1752935259322,7.13479773,176.23,176.13,3.96479773]
[1752935259521,7.13479773,176.23,176.14,3.29]
[1752935260318,3.17,176.22,176.2,3.29]
[1752935261023,3.17,176.21,176.2,3.29]
[1752935261215,3.17,176.21,176.19,5.6726]
[1752935261414,3.17,176.21,176.19,8.9626]
[1752935261618,104.52,176.29,176.19,8.9626]
[1752935261814,3.17,176.2,176.19,8.9626]
[1752935263017,3.96479773,176.22,176.19,8.9626]
[1752935263219,3.17,176.21,176.2,8.9625]
[1752935263416,3.17,176.23,176.13,3.96479773]
[1752935263617,3.17,176.23,176.22,5.6718]
[1752935263817,3.96479773,176.24,176.16,3.29]
[1752935264213,3.96479773,176.24,176.21,3.29]
[1752935264418,3.17,176.23,176.21,3.29]
[1752935264920,3.96479773,176.24,176.23,8.9615]
[1752935265514,3.17,176.26,176.17,3.29]
[1752935265913,3.17,176.26,176.17,3.96479773]
[1752935266113,3.17,176.26,176.25,5.6709]
[1752935267225,3.17,176.26,176.25,8.9609]
[1752935267422,3.17,176.29,176.25,3.29]
[1752935267627,7.13479773,176.28,176.26,3.29]
[1752935267827,3.17,176.27,176.26,3.29]
[1752935268620,3.17,176.27,176.26,8.9606]
[1752935268822,7.13479773,176.28,176.26,3.29]
[1752935269032,3.17,176.27,176.26,5.6706]
[1752935269424,3.17,176.27,176.26,8.9606]
[1752935270025,3.96479773,176.28,176.27,8.9602]
[1752935270328,7.13479773,176.28,176.27,5.6702]
[1752935271627,104.54,176.3,176.28,5.6699]
[1752935271830,3.1,176.28,176.24,0.03585146]
[1752935272030,107.64,176.3,176.24,0.03585146]
[1752935272221,107.64,176.3,176.29,5.6696]
[1752935273122,3.1,176.29,176.2,3.23]
[1752935273326,7.06479773,176.29,176.2,3.23]
[1752935273530,7.06479773,176.29,176.28,5.6699]
[1752935274025,3.96479773,176.29,176.28,8.8999]
[1752935274231,7.06479773,176.29,176.28,8.8999]
[1752935274429,7.06479773,176.29,176.28,5.6699]
[1752935276029,3.1,176.28,176.26,3.23]
[1752935276333,3.1,176.27,176.26,3.23]
[1752935276630,3.1,176.26,176.17,3.23]
[1752935276832,3.96479773,176.25,176.17,3.23]
[1752935277028,2.43463397,176.24,176.23,5.6715]
[1752935277231,5.53463397,176.24,176.23,8.9015]
[1752935278940,3.1,176.24,176.23,8.9015]
[1752935279439,3.1,176.24,176.22,8.9018]
[1752935279737,3.1,176.23,176.22,3.23]
[1752935279937,7.06754735,176.23,176.22,3.23]
[1752935280841,3.1,176.22,176.19,3.23]
[1752935281137,3.1,176.2,176.19,3.23]
[1752935281738,3.1,176.2,176.14,3.23]
[1752935282036,7.06754735,176.17,176.14,3.23]
[1752935282337,3.1,176.16,176.14,3.23]
[1752935282542,3.96754735,176.17,176.15,3.23]
[1752935282739,3.1,176.16,176.15,3.23]
[1752935282934,3.1,176.16,176.08,4.72741605]
[1752935283139,3.1,176.16,176.09,3.23]
[1752935283339,9.64104735,176.17,176.13,5.6745]
[1752935283537,3.1,176.15,176.14,3.23]
[1752935283937,3.1,176.2,176.15,3.23]
[1752935284137,3.1,176.18,176.1,3.23]
[1752935284346,3.1,176.16,176.1,3.23]
[1752935284542,3.1,176.16,176.13,5.6745]
[1752935284742,3.1,176.16,176.1,3.23]
[1752935285138,3.1,176.16,176.08,3.23]
[1752935285438,3.96754735,176.17,176.08,7.95741605]
[1752935285638,3.96754735,176.17,176.09,3.23]
[1752935286443,3.96754735,176.17,176.16,5.6738]
[1752935286643,7.06754735,176.17,176.16,5.6738]
[1752935287146,7.06754735,176.17,176.09,3.23]
[1752935287738,7.06754735,176.17,176.08,4.72741605]
[1752935287939,7.06754735,176.17,176.12,3.23]
[1752935288443,7.06754735,176.17,176.15,8.904]
[1752935288642,3.1,176.16,176.15,8.904]
[1752935289044,7.06754735,176.19,176.15,3.23]
[1752935289339,3.1,176.19,176.15,3.23]
[1752935289544,3.1,176.19,176.18,5.6731]
[1752935289744,7.06754735,176.19,176.18,5.6731]
[1752935289940,3.96754735,176.19,176.18,8.9031]
[1752935290144,7.06754735,176.23,176.14,3.96754735]
[1752935290345,7.06754735,176.23,176.15,3.23]
[1752935290638,381.32,176.28,176.14,3.23]
[1752935290639,3.1,176.2,176.14,3.23]
[1752935291244,3.1,176.2,176.18,5.6731]
[1752935291439,3.1,176.19,176.16,3.23]
[1752935291641,3.1,176.18,176.16,3.23]
[1752935291851,3.96754735,176.19,176.16,8.9036]
[1752935292042,3.1,176.18,176.14,3.23]
[1752935292341,5.6732,176.18,176.15,3.23]
[1752935292547,3.1,176.16,176.15,3.23]
[1752935292948,3.1,176.16,176.15,8.9041]
[1752935293338,3.1,176.16,176.15,5.6741]
[1752935293651,3.1,176.15,176.14,8.9044]
[1752935294649,7.06754735,176.17,176.16,5.6737]
[1752935294942,3.1,176.17,176.16,5.6737]
[1752935295142,3.1,176.17,176.16,8.9037]
[1752935296447,7.06754735,176.18,176.17,3.23]
[1752935296643,7.06754735,176.18,176.16,5.6737]
[1752935296846,3.1,176.17,176.16,8.9037]
[1752935297243,3.1,176.17,176.12,3.23]
[1752935297449,3.1,176.15,176.09,3.23]
[1752935297648,3.96754735,176.16,176.09,3.23]
[1752935298254,3.1,176.17,176.16,8.9038]
[1752935298650,3.1,176.17,176.16,5.6738]
[1752935298853,3.1,176.17,176.11,3.23]
[1752935299059,3.1,176.21,176.05,3.96754735]
[1752935299366,3.96754735,176.18,176.15,5.6738]
[1752935299567,3.1,176.17,176.07,3.96754735]
[1752935299860,3.1,176.22,176.16,3.23]
[1752935300163,7.06754735,176.22,176.16,3.23]
[1752935300364,3.96754735,176.24,176.21,9.0122]
[1752935300560,3.17,176.23,176.22,3.34]
[1752935300863,485.86,176.28,176.22,3.34]
[1752935300864,7.13754735,176.26,176.22,3.34]
[1752935301058,5.60419026,176.26,176.22,3.34]
[1752935301457,3.17,176.26,176.25,5.6709]
[1752935301657,2.43419026,176.27,176.25,3.34]
[1752935301967,2.43419026,176.29,176.27,3.34]
[1752935302173,104.66,176.35,176.21,2.43419026]
[1752935302174,5.60419026,176.31,176.22,3.34]
[1752935302365,2.43419026,176.32,176.24,3.34]
[1752935302560,2.43419026,176.3,176.24,3.34]
[1752935302865,5.60419026,176.25,176.19,3.34]
[1752935303662,2.43419026,176.23,176.21,5.6719]
[1752935303863,5.60419026,176.23,176.21,9.0119]
[1752935304063,3.17,176.22,176.21,3.34]
[1752935304264,3.17,176.21,176.2,3.37578797]
[1752935304568,5.60419026,176.21,176.2,0.03578797]
[1752935304868,5.60419026,176.21,176.2,5.70828797]
[1752935305069,5.60419026,176.21,176.2,9.04828797]
[1752935305259,5.60419026,176.21,176.2,0.03578797]
[1752935307066,7.13925376,176.21,176.2,0.03578797]
[1752935307571,12.81145376,176.21,176.2,0.03578797]
[1752935310673,8.8422,176.21,176.2,0.03578797]
[1752935310972,12.81145376,176.21,176.2,0.03578797]
[1752935314175,7.13925376,176.21,176.2,0.03578797]
[1752935314867,12.81145376,176.21,176.2,0.03578797]
[1752935315269,7.13925376,176.21,176.16,3.34]
[1752935315476,7.13925376,176.18,176.16,3.34]
[1752935315675,3.17,176.17,176.16,3.34]
[1752935316975,3.17,176.17,176.16,9.0138]
[1752935317478,3.96925376,176.18,176.16,9.0138]
[1752935317776,7.13925376,176.18,176.17,3.34]
[1752935318374,7.13925376,176.18,176.15,9.014]
[1752935318567,3.17,176.17,176.16,3.34]
[1752935318977,3.96925376,176.18,176.16,9.0137]
[1752935319177,7.13925376,176.18,176.17,3.34]
[1752935319573,3.17,176.24,176.17,5.6733]
[1752935319878,7.13925376,176.2,176.19,3.34]
[1752935320068,3.96925376,176.2,176.19,3.34]
[1752935320977,7.13925376,176.2,176.19,3.34]
[1752935321982,3.17,176.19,176.13,3.34]
[1752935322184,3.96925376,176.2,176.08,108.62925376]
[1752935322185,7.13925376,176.15,176.1,3.34]
[1752935322372,3.96925376,176.15,176.1,3.34]
[1752935322679,3.96925376,176.15,176.14,9.0144]
[1752935323383,3.96925376,176.15,176.14,3.34]
[1752935323585,7.13925376,176.15,176.14,3.34]
[1752935324381,3.96925376,176.15,176.14,3.34]
[1752935324888,12.81335376,176.15,176.14,3.34]
[1752935325078,7.13925376,176.15,176.14,3.34]
[1752935326181,3.17,176.14,176.08,3.34]
[1752935326387,3.96925376,176.11,176.08,3.34]
[1752935327488,7.13925376,176.11,176.05,3.34]
[1752935327788,3.96925376,176.11,176.05,3.34]
[1752935327987,7.13925376,176.11,176.07,3.34]
[1752935328188,3.96925376,176.11,176.07,3.34]
[1752935328489,3.96925376,176.13,176.1,5.6754]
[1752935328788,3.96925376,176.13,176.12,3.34]
[1752935328989,2.43766011,176.13,176.12,3.34]
[1752935329189,2.43766011,176.14,176.12,3.34]
[1752935329486,2.43766011,176.14,176.13,3.34]
[1752935329888,5.60766011,176.14,176.06,3.34]
[1752935330084,2.43766011,176.11,176.06,3.34]
[1752935330784,3.18,176.14,176.12,3.15]
[1752935331088,2.43766011,176.14,176.12,3.15]
[1752935331283,2.43766011,176.14,176.13,8.8247]
[1752935331590,2.43766011,176.16,176.13,3.15]
[1752935331987,5.61766011,176.16,176.15,3.15]
[1752935332383,3.18,176.15,176.09,3.15]
[1752935332581,5.61766011,176.12,176.11,5.6754]
[1752935332782,2.43766011,176.12,176.11,8.8254]
[1752935334688,3.18,176.21,176.12,3.15]
[1752935334883,2.43766011,176.14,176.12,3.15]
[1752935335485,2.43766011,176.14,176.13,3.15]
[1752935335891,2.43766011,176.14,176.13,8.8246]
[1752935336494,2.43766011,176.14,176.13,3.15]
[1752935336695,5.61766011,176.14,176.13,3.15]
[1752935336990,2.43766011,176.14,176.13,3.15]
[1752935337189,5.61766011,176.14,176.07,3.15]
[1752935337488,2.43766011,176.13,176.07,3.15]
[1752935337696,2.43766011,176.13,176.12,3.15]
[1752935338288,5.61766011,176.13,176.12,3.15]
[1752935338486,5.61766011,176.13,176.06,3.15]
[1752935338691,2.43766011,176.11,176.06,3.15]
[1752935338995,2.43766011,176.11,176.04,4.76887096]
[1752935338996,2.43766011,176.09,176.08,3.15]
[1752935339887,3.18,176.08,176.04,3.15]
[1752935340093,2.43766011,176.07,176.04,3.15]
[1752935340293,2.43766011,176.07,176.06,5.6767]
[1752935340492,8.8559,176.1,176.06,8.8267]
[1752935340792,3.18,176.18,176.07,3.15]
[1752935341096,113.48772987,176.22,176.08,2.43766011]
[1752935341097,2.43766011,176.15,176.08,2.43766011]
[1752935341296,2.43766011,176.15,176.09,3.15]
[1752935342397,5.61766011,176.15,176.09,3.15]
[1752935342796,8.8535,176.17,176.14,3.15]
[1752935342997,5.61766011,176.16,176.15,3.15]
[1752935343193,2.43766011,176.18,176.15,3.15]
[1752935343394,2.43766011,176.18,176.11,3.15]
[1752935344003,2.43766011,176.18,176.15,3.15]
[1752935344004,3.18,176.17,176.15,3.15]
[1752935344300,2.43766011,176.16,176.09,2.43766011]
[1752935344499,2.43766011,176.16,176.14,5.6742]
[1752935344906,2.43766011,176.16,176.15,3.15]
[1752935345206,3.18,176.15,176.12,3.15]
[1752935345398,5.61766011,176.13,176.12,3.15]
[1752935346505,2.43766011,176.13,176.12,8.825]
[1752935347202,5.61766011,176.13,176.12,3.15]
[1752935347801,2.43766011,176.14,176.07,3.15]
[1752935348000,3.18,176.17,176.07,3.15]
[1752935348207,5.61766011,176.11,176.07,4.76887096]
[1752935348410,2.43766011,176.13,176.08,3.15]
[1752935349006,2.43766011,176.13,176.12,8.825]
[1752935351507,3.18,176.12,176.07,4.76887096]
[1752935351706,3.18,176.16,176.08,3.15]
[1752935351907,3.18,176.16,176.09,2.43766011]
[1752935352113,2.43766011,176.17,176.1,3.15]
[1752935352307,3.18,176.21,176.1,3.15]
[1752935352512,5.61766011,176.21,176.18,5.6729]
[1752935352810,3.18,176.2,176.19,3.15]
[1752935353009,3.18,176.19,176.18,3.15]
[1752935353209,3.18,176.18,176.12,3.15]
[1752935354807,2.43766011,176.19,176.12,3.15]
[1752935355011,2.43766011,176.17,176.12,3.15]
[1752935356017,3.18,176.19,176.12,3.15]
[1752935356221,2.43766011,176.2,176.12,3.15]
[1752935356415,2.43766011,176.2,176.13,2.43766011]
[1752935356621,5.61766011,176.21,176.14,3.15]
[1752935357210,2.43766011,176.21,176.14,3.15]
[1752935357418,5.61766011,176.22,176.14,3.15]
[1752935357618,2.43766011,176.22,176.14,3.15]
[1752935357928,2.43766011,176.24,176.16,3.15]
[1752935358425,5.61766011,176.24,176.16,3.15]
[1752935358723,3.18,176.19,176.14,3.15]
[1752935358924,3.18,176.19,176.18,3.15]
[1752935359520,3.18,176.19,176.18,8.8231]
[1752935359828,2.43766011,176.2,176.18,8.8231]
[1752935360126,5.61766011,176.2,176.19,3.15]
[1752935361314,2.43766011,176.2,176.19,3.15]
[1752935361520,2.43766011,176.22,176.19,3.15]
[1752935362024,11.20866011,176.25,176.19,3.15]
[1752935362622,11.20866011,176.25,176.16,2.43766011]
[1752935362623,5.6705,176.27,176.23,3.07]
[1752935362821,2.43766011,176.24,176.15,3.07]
[1752935363128,2.43766011,176.24,176.15,2.43766011]
[1752935363317,111.37006976,176.3,176.13,4.76870622]
[1752935363318,3.1,176.21,176.13,4.76870622]
[1752935363519,3.1,176.19,176.14,3.07]
[1752935363726,2.43766011,176.2,176.14,3.07]
[1752935363932,2.43766011,176.2,176.15,3.07]
[1752935364328,3.1,176.21,176.2,3.07]
[1752935366728,2.43766011,176.22,176.19,5.6728]
[1752935366929,2.43766011,176.2,176.17,3.07]
[1752935367230,3.1,176.18,176.17,3.07]
[1752935367432,2.43766011,176.2,176.17,5.6732]
[1752935367632,2.43766011,176.18,176.15,3.07]
[1752935367832,3.1,176.17,176.16,3.07]
[1752935368029,2.43766011,176.18,176.12,3.07]
[1752935368233,2.43766011,176.2,176.13,3.07]
[1752935368833,2.43766011,176.2,176.19,8.7428]
[1752935369032,3.1,176.21,176.2,3.07]
[1752935369232,2.43766011,176.22,176.19,3.07]
[1752935369432,5.53766011,176.2,176.19,3.07]
[1752935369926,5.53766011,176.2,176.19,8.7428]
[1752935370741,3.1,176.19,176.18,8.7431]
[1752935371030,3.1,176.19,176.16,3.07]
[1752935371231,2.43766011,176.18,176.11,4.76870622]
[1752935371427,3.1,176.14,176.13,3.07]
[1752935371632,3.1,176.14,176.13,8.7445]
[1752935372129,5.53766011,176.16,176.14,5.6743]
[1752935372328,3.1,176.15,176.14,8.7443]
[1752935372527,3.1,176.15,176.14,3.07]
[1752935373031,3.1,176.15,176.1,4.76870622]
[1752935373238,3.1,176.12,176.1,3.07]
[1752935373433,3.1,176.13,176.08,4.76870622]
[1752935373639,3.1,176.14,176.12,3.07]
[1752935373836,3.1,176.14,176.13,8.7447]
[1752935374032,3.1,176.15,176.14,3.07]
[1752935374532,7.0709265,176.17,176.15,3.07]
[1752935374839,112.31006976,176.27,176.16,3.07]
[1752935374840,3.1,176.19,176.16,3.07]
[1752935375132,381.46,176.28,176.09,4.76870622]
[1752935375133,3.1,176.17,176.09,4.76870622]
[1752935375436,3.1,176.16,176.13,5.6746]
[1752935375639,7.0709265,176.15,176.14,3.07]
[1752935375837,3.9709265,176.22,176.14,3.07]
[1752935376036,3.1,176.17,176.16,3.07]
[1752935376636,3.9709265,176.18,176.14,5.6742]
[1752935376836,3.1,176.16,176.15,3.07]
[1752935377137,3.1,176.15,176.09,3.07]
[1752935377940,3.1359418,176.14,176.11,3.07]
[1752935378236,3.1,176.13,176.11,3.07]
[1752935379240,3.1,176.12,176.11,3.07]
[1752935380143,4.0068683,176.14,176.1,3.07]
[1752935380442,3.1,176.12,176.11,3.07]
[1752935381040,3.1,176.13,176.07,3.07]
[1752935381341,9.6462265,176.12,176.09,3.07]
[1752935381642,3.1,176.1,176.09,3.07]
[1752935382140,3.1,176.09,176.05,3.07]
[1752935382345,3.1,176.08,176.05,3.07]
[1752935383044,3.1,176.09,176.07,3.07]
[1752935383244,3.1,176.09,176.08,3.07]
[1752935383746,3.1,176.12,176.08,3.07]
[1752935384244,7.0709265,176.12,176.08,3.07]
[1752935384544,3.1,176.11,176.09,3.07]
[1752935385045,3.1,176.11,176.1,3.07]
[1752935385344,3.1,176.11,176.08,3.07]
[1752935385541,3.1,176.1,176.08,3.07]
[1752935386439,3.1,176.1,176.09,3.07]
[1752935387146,7.0709265,176.13,176.09,3.07]
[1752935387349,3.9709265,176.13,176.05,4.76870622]
[1752935387548,3.1,176.12,176.06,3.07]
[1752935389150,3.1,176.11,176.1,3.07]
[1752935389851,3.1,176.11,176.1,8.7456]
[1752935390744,3.1,176.11,176.1,3.07]
[1752935391241,0.03595435,176.12,176.1,8.7456]
[1752935391441,0.03595435,176.12,176.1,3.07]
[1752935391847,0.03595435,176.12,176.11,8.8053]
[1752935395249,0.03595435,176.12,176.07,2.43702921]
[1752935395250,5.72702921,176.17,176.15,3.13]
[1752935395445,6.23006976,176.26,176.15,3.13]
[1752935395446,2.43702921,176.18,176.15,3.13]
[1752935395751,2.43702921,176.18,176.15,8.8038]
[1752935395953,2.43702921,176.18,176.16,3.13]
[1752935396553,2.43702921,176.18,176.17,3.13]
[1752935396943,5.72702921,176.18,176.17,3.13]
[1752935397951,3.29,176.18,176.17,3.13]
[1752935398150,5.72702921,176.18,176.17,3.13]
[1752935398552,2.43702921,176.18,176.17,3.13]
[1752935398759,5.72702921,176.18,176.17,3.13]
[1752935400954,5.72702921,176.23,176.18,3.13]
[1752935401153,5.72702921,176.23,176.2,5.6724]
[1752935401350,5.72702921,176.23,176.16,0.03580226]
[1752935401351,2.43702921,176.23,176.16,3.13]
[1752935401555,5.72702921,176.23,176.16,3.13]
[1752935401758,2.43702921,176.21,176.19,3.13]
[1752935401953,3.29,176.2,176.19,3.13]
[1752935404059,3.29,176.2,176.19,8.8027]
[1752935404260,2.43702921,176.21,176.19,5.6727]
[1752935404461,5.72702921,176.21,176.2,3.13]
[1752935404756,3.29,176.23,176.21,3.13]
[1752935405061,5.72702921,176.24,176.21,8.8018]
[1752935405259,5.72702921,176.24,176.21,3.13]
[1752935405460,5.72702921,176.26,176.21,3.13]
[1752935405760,5.72702921,176.26,176.23,3.13]
[1752935405963,3.29,176.25,176.24,3.13]
[1752935406357,3.29,176.26,176.25,3.13]
[1752935407451,5.6699,176.28,176.25,3.13]
[1752935407657,5.72702921,176.27,176.26,3.13]
[1752935408058,2.43702921,176.3,176.26,3.13]
[1752935408254,5.72702921,176.3,176.26,3.13]
[1752935408759,2.43702921,176.3,176.26,3.13]
[1752935409057,3.29,176.32,176.25,2.43702921]
[1752935409260,3.29,176.32,176.26,3.13]
[1752935409462,3.29,176.32,176.31,3.13]
[1752935409664,3.29,176.35,176.28,3.13]
[1752935410257,2.43702921,176.37,176.29,2.43702921]
[1752935410458,3.29,176.36,176.34,3.13]
[1752935410660,3.29,176.36,176.35,3.13]
[1752935410961,2.43702921,176.37,176.35,3.13]
[1752935411269,3.29,176.36,176.35,3.13]
[1752935412273,2.43702921,176.38,176.35,3.13]
[1752935412476,2.43702921,176.41,176.35,3.13]
[1752935412672,3.29,176.4,176.38,5.6666]
[1752935412872,3.29,176.42,176.33,2.43702921]
[1752935413077,3.29,176.42,176.41,3.13]
[1752935413675,3.29,176.42,176.39,3.13]
[1752935413874,3.29,176.42,176.35,3.13]
[1752935414075,3.29,176.4,176.33,3.13]
[1752935414770,3.29,176.4,176.36,5.6671]
[1752935414969,3.29,176.39,176.38,3.13]
[1752935416574,2.43702921,176.41,176.38,3.13]
[1752935416772,3.29,176.4,176.39,3.13]
[1752935418479,3.29,176.43,176.36,2.43702921]
[1752935418678,3.29,176.43,176.37,3.13]
[1752935418884,3.29,176.43,176.4,5.666]
[1752935419175,3.29,176.43,176.37,3.13]
[1752935419176,3.29,176.43,176.42,3.13]
[1752935419383,2.43702921,176.44,176.37,3.13]
[1752935419584,3.29,176.43,176.41,3.13]
[1752935419782,3.29,176.43,176.42,3.13]
[1752935420176,2.43702921,176.44,176.42,3.13]
[1752935420479,3.09,176.43,176.42,3.13]
[1752935420684,3.09,176.43,176.39,3.21]
[1752935420879,2.43702921,176.42,176.39,3.21]
[1752935421084,3.09,176.39,176.37,3.21]
[1752935421286,5.52702921,176.41,176.33,2.43702921]
[1752935421476,5.52702921,176.41,176.4,3.21]
[1752935422781,3.09,176.4,176.37,3.21]
[1752935423084,3.09,176.4,176.34,3.21]
[1752935423281,2.43702921,176.41,176.38,3.21]
[1752935423482,3.09,176.4,176.33,3.21]
[1752935423678,3.09,176.42,176.33,2.43702921]
[1752935423883,3.09,176.43,176.35,2.43702921]
[1752935424187,3.09,176.43,176.36,3.21]
[1752935424582,3.09,176.43,176.37,2.43702921]
[1752935424785,2.43702921,176.44,176.38,3.21]
[1752935424986,2.43702921,176.44,176.43,3.21]
[1752935425777,2.43702921,176.44,176.43,8.875]
[1752935426083,2.43702921,176.46,176.45,3.21]
[1752935426283,3.09,176.47,176.46,3.21]
[1752935426485,5.52702921,176.48,176.47,3.21]
[1752935426781,3.09,176.47,176.4,3.21]
[1752935427085,3.09,176.47,176.45,8.8742]
[1752935427285,3.09,176.47,176.46,3.21]
[1752935428086,3.09,176.46,176.45,8.8742]
[1752935428682,2.43702921,176.46,176.43,3.21]
[1752935428984,3.09,176.44,176.43,3.21]
[1752935429685,3.09,176.44,176.37,2.43702921]
[1752935429686,5.52702921,176.44,176.38,3.21]
[1752935429881,5.52702921,176.42,176.39,3.21]
[1752935430188,5.52702921,176.42,176.4,3.21]
[1752935430587,3.09,176.42,176.4,8.8758]
[1752935430886,5.52702921,176.42,176.41,3.21]
[1752935431084,2.43702921,176.42,176.41,3.21]
[1752935431492,5.52702921,176.44,176.42,3.21]
[1752935431690,5.52702921,176.44,176.43,3.21]
[1752935431885,2.43702921,176.46,176.39,3.21]
[1752935432286,105.4,176.52,176.42,2.43702921]
[1752935432287,3.09,176.5,176.42,2.43702921]
[1752935432591,3.09,176.48,176.47,3.21]
[1752935433890,3.09,176.48,176.47,8.8737]
[1752935434292,2.43702921,176.5,176.47,5.6637]
[1752935434594,105.38,176.57,176.36,11.334]
[1752935434595,5.52702921,176.51,176.44,2.43702921]
[1752935434791,5.52702921,176.53,176.47,3.21]
[1752935435088,5.52702921,176.53,176.52,3.21]
[1752935435295,5.52702921,176.53,176.4,2.43702921]
[1752935435492,105.38,176.57,176.48,3.21]
[1752935435493,5.52702921,176.51,176.48,3.21]
[1752935435793,3.09,176.5,176.49,8.8731]
[1752935436189,2.43702921,176.53,176.45,3.21]
[1752935436795,3.09,176.54,176.52,5.6621]
[1752935437001,3.09,176.54,176.53,3.21]
[1752935437290,2.43702921,176.55,176.51,5.6623]
[1752935437498,3.09,176.53,176.52,3.21]
[1752935437885,3.09,176.53,176.5,5.6627]
[1752935438092,3.09,176.51,176.5,3.21]
[1752935438287,3.09,176.5,176.49,3.21]
[1752935439398,5.52702921,176.52,176.46,3.21]
[1752935439901,5.52702921,176.52,176.49,8.8729]
[1752935439902,3.09,176.51,176.49,8.8729]
[1752935440087,3.09,176.5,176.49,8.8729]
[1752935440789,2.43702921,176.5,176.38,380.94]
[1752935440992,3.09,176.49,176.43,3.21]
[1752935441193,3.09,176.49,176.46,5.6639]
[1752935441394,3.09,176.48,176.47,3.21]
[1752935441694,2.43702921,176.5,176.42,2.43702921]
[1752935441994,3.09,176.47,176.44,3.21]
[1752935442195,3.09,176.46,176.45,3.21]
[1752935442497,3.09,176.43,176.42,3.21]
[1752935442695,5.52702921,176.43,176.42,3.21]